bitfinex-derivatives/quotes_BTCF0:USTF0_20250716
["timestamp","ask_amount","ask_price","bid_price","bid_amount"]
[1752685780567,1.12387701,119360.0,119350.0,0.63367535]
[1752685780868,0.80555461,119360.0,119350.0,0.63367535]
[1752685781158,1.12387701,119360.0,119350.0,0.63367535]
[1752685781364,1.12387701,119360.0,119350.0,0.07179]
[1752685781560,0.80555461,119360.0,119350.0,0.3712024]
[1752685781759,1.94219941,119360.0,119350.0,0.05288]
[1752685782666,1.94219941,119360.0,119350.0,0.3712024]
[1752685782861,1.94219941,119360.0,119340.0,0.67167175]
[1752685782862,0.1674994,119350.0,119340.0,0.31147265]
[1752685783061,0.4871218,119350.0,119340.0,0.61550965]
[1752685783265,0.4871218,119350.0,119340.0,0.46617615]
[1752685783463,0.9871218,119350.0,119340.0,0.63368955]
[1752685784166,0.9871218,119350.0,119340.0,0.2551534]
[1752685784367,0.6683194,119350.0,119340.0,0.2551534]
[1752685784569,0.6683194,119350.0,119340.0,0.8937982]
[1752685785161,0.9871218,119350.0,119340.0,0.8937982]
[1752685785360,0.6687994,119350.0,119340.0,0.8937982]
[1752685785561,0.6687994,119350.0,119340.0,0.2571534]
[1752685785770,0.9871218,119350.0,119340.0,0.8937982]
[1752685786264,0.6687994,119350.0,119340.0,0.8779482]
[1752685786460,0.9871218,119350.0,119340.0,0.5756658]
[1752685786661,0.9871218,119350.0,119340.0,0.8939882]
[1752685786962,0.6687994,119350.0,119340.0,0.8939882]
[1752685787462,0.6687994,119350.0,119340.0,0.95420195]
[1752685788062,0.9871218,119350.0,119340.0,0.63587955]
[1752685788262,0.9871218,119350.0,119340.0,0.46836615]
[1752685788467,0.9871218,119350.0,119340.0,0.63587955]
[1752685789170,0.6687994,119350.0,119340.0,0.95420195]
[1752685789365,0.9871218,119350.0,119340.0,0.11509375]
[1752685789570,0.9871218,119350.0,119340.0,0.3732024]
[1752685790870,0.6687994,119350.0,119340.0,0.5407158]
[1752685791067,0.6687994,119350.0,119340.0,0.5571658]
[1752685791366,0.9871218,119350.0,119340.0,0.5756658]
[1752685792164,0.9871218,119350.0,119340.0,0.2573434]
[1752685792364,0.9871218,119350.0,119340.0,0.5756658]
[1752685792572,0.9871218,119350.0,119340.0,0.2573434]
[1752685792763,0.9871218,119350.0,119340.0,0.5756658]
[1752685793073,0.9871218,119350.0,119340.0,0.05017]
[1752685793371,0.9871218,119350.0,119340.0,0.10012624]
[1752685793572,0.6687994,119350.0,119340.0,0.58596234]
[1752685793769,0.6687994,119350.0,119340.0,0.5758561]
[1752685793970,0.9873218,119350.0,119340.0,0.5760561]
[1752685794277,0.9873218,119350.0,119340.0,0.3900424]
[1752685794665,0.9873218,119350.0,119340.0,0.07172]
[1752685794866,1.6043218,119350.0,119340.0,0.07172]
[1752685795370,1.6043218,119350.0,119340.0,0.05527]
[1752685796070,1.6043218,119350.0,119340.0,0.04726012]
[1752685796266,1.6043218,119350.0,119340.0,0.04526012]
[1752685797370,1.2859994,119350.0,119340.0,0.04526012]
[1752685797574,1.6043218,119350.0,119340.0,0.04526012]
[1752685797968,1.6043218,119350.0,119340.0,0.03024525]
[1752685798474,1.9226442,119350.0,119340.0,0.03024525]
[1752685798774,1.6043218,119350.0,119340.0,0.03024525]
[1752685799474,2.1457218,119350.0,119340.0,0.03024525]
[1752685800075,2.7624018,119350.0,119340.0,0.03024525]
[1752685800274,2.7623618,119350.0,119340.0,0.03024525]
[1752685800467,2.7623618,119350.0,119340.0,0.07530537]
[1752685800669,2.1457218,119350.0,119340.0,0.07530537]
[1752685800870,2.7623618,119350.0,119340.0,0.07530537]
[1752685801272,2.7623218,119350.0,119340.0,0.07530537]
[1752685801473,2.1457218,119350.0,119340.0,0.07530537]
[1752685801778,2.4439594,119350.0,119340.0,0.07530537]
[1752685802087,2.15402644,119350.0,119340.0,0.12302537]
[1752685802377,2.77054644,119350.0,119340.0,0.12302537]
[1752685804475,2.77058644,119350.0,119340.0,0.12302537]
[1752685804875,2.15406644,119350.0,119340.0,0.12302537]
[1752685805177,2.77046644,119350.0,119340.0,0.12302537]
[1752685805371,2.77042644,119350.0,119340.0,0.09298012]
[1752685805680,2.77042644,119350.0,119340.0,0.09788012]
[1752685806179,2.77042644,119350.0,119340.0,0.39369871]
[1752685806378,2.45210404,119350.0,119340.0,0.4237738]
[1752685806580,2.15406644,119350.0,119340.0,0.4237738]
[1752685806780,2.77042644,119350.0,119340.0,0.4237738]
[1752685806981,2.77034644,119350.0,119340.0,0.4237738]
[1752685807182,2.77034644,119350.0,119340.0,0.1054514]
[1752685808085,2.45194404,119350.0,119340.0,0.1054514]
[1752685808287,2.77026644,119350.0,119340.0,0.1054514]
[1752685808977,2.77026644,119350.0,119340.0,0.0528314]
[1752685809177,1.83574404,119350.0,119340.0,0.0528314]
[1752685809374,2.77022644,119350.0,119340.0,0.0528314]
[1752685809586,2.77018644,119350.0,119340.0,0.0528314]
[1752685810684,2.77018644,119350.0,119340.0,0.1005514]
[1752685811288,2.45186404,119350.0,119340.0,0.1005514]
[1752685811490,2.77018644,119350.0,119340.0,0.1005514]
[1752685812291,2.77018644,119350.0,119340.0,0.07799509]
[1752685812892,2.77018644,119350.0,119340.0,0.10056439]
[1752685814491,2.45186404,119350.0,119340.0,0.10056439]
[1752685814692,2.77018644,119350.0,119340.0,0.10056439]
[1752685815194,2.77018644,119350.0,119340.0,0.10521439]
[1752685816093,2.77018644,119350.0,119340.0,0.09763012]
[1752685816492,2.77018644,119350.0,119340.0,0.09298012]
[1752685816693,2.15406644,119350.0,119340.0,0.09298012]
[1752685816992,2.76974644,119350.0,119340.0,0.09298012]
[1752685817897,3.08806884,119350.0,119340.0,0.04526012]
[1752685818102,3.08806884,119350.0,119340.0,0.07536671]
[1752685818899,2.47238884,119350.0,119340.0,0.07536671]
[1752685819698,3.08986884,119350.0,119340.0,0.07536671]
[1752685819997,2.47438884,119350.0,119340.0,0.07536671]
[1752685820194,3.08982884,119350.0,119340.0,0.07536671]
[1752685820398,2.47438884,119350.0,119340.0,0.07536671]
[1752685820698,3.08978884,119350.0,119340.0,0.03030659]
[1752685820899,3.25737284,119350.0,119340.0,0.03030659]
[1752685821500,2.64197284,119350.0,119340.0,0.07536671]
[1752685821699,3.25737284,119350.0,119340.0,0.07536671]
[1752685823501,3.25721284,119350.0,119340.0,0.07536671]
[1752685823902,2.64197284,119350.0,119340.0,0.07536671]
[1752685824102,3.25717284,119350.0,119340.0,0.07536671]
[1752685824295,2.64197284,119350.0,119340.0,0.07536671]
[1752685824694,3.08954884,119350.0,119340.0,0.07536671]
[1752685827202,3.08954884,119350.0,119340.0,0.03030659]
[1752685827506,2.47438884,119350.0,119340.0,0.03030659]
[1752685827706,3.08946884,119350.0,119340.0,0.03030659]
[1752685828205,3.08930884,119350.0,119340.0,0.03030659]
[1752685828906,3.08930884,119350.0,119340.0,0.07625659]
[1752685829108,3.08930884,119350.0,119340.0,0.12596671]
[1752685830209,2.47438884,119350.0,119340.0,0.12596671]
[1752685830408,3.08926884,119350.0,119340.0,0.12596671]
[1752685830608,1.83774404,119350.0,119340.0,0.15761671]
[1752685830805,2.77082644,119350.0,119340.0,0.15997671]
[1752685831508,2.77074644,119350.0,119340.0,0.15997671]
[1752685832398,2.77074644,119350.0,119340.0,0.14241671]
[1752685832602,0.6705594,119350.0,119340.0,0.93402922]
[1752685833005,1.2851594,119350.0,119340.0,0.76651492]
[1752685833207,1.2851594,119350.0,119340.0,0.8889691]
[1752685833606,1.2851594,119350.0,119340.0,0.93415968]
[1752685834212,1.6034818,119350.0,119340.0,0.76664538]
[1752685835011,1.6034818,119350.0,119340.0,0.7214548]
[1752685835210,1.2851594,119350.0,119340.0,0.4031324]
[1752685835511,1.6034818,119350.0,119340.0,0.7214548]
[1752685836108,1.6034818,119350.0,119340.0,0.4031324]
[1752685837006,1.6034818,119350.0,119340.0,0.08481]
[1752685837206,1.6034818,119350.0,119340.0,0.4031324]
[1752685838313,1.6034818,119350.0,119340.0,0.44830486]
[1752685840207,1.6039618,119350.0,119340.0,0.44830486]
[1752685841512,1.6034818,119350.0,119340.0,0.12998246]
[1752685841717,1.6034818,119350.0,119340.0,0.44830486]
[1752685842017,0.9888818,119350.0,119340.0,0.44830486]
[1752685842204,1.6028418,119350.0,119340.0,0.12998246]
[1752685842608,0.9888818,119350.0,119340.0,0.12998246]
[1752685842809,1.6027618,119350.0,119340.0,0.44830486]
[1752685843006,1.6027618,119350.0,119340.0,0.12998246]
[1752685843217,1.6027618,119350.0,119340.0,0.44830486]
[1752685843411,1.6032418,119350.0,119340.0,0.12998246]
[1752685843712,1.2849194,119350.0,119340.0,0.12998246]
[1752685843916,1.6032418,119350.0,119340.0,0.12998246]
[1752685845020,1.9215642,119350.0,119340.0,0.09597246]
[1752685845214,1.9215642,119350.0,119340.0,0.04537246]
[1752685845419,1.9215642,119350.0,119340.0,0.03031575]
[1752685845919,0.041883,119330.0,119310.0,0.05401]
[1752685846221,1.9185071,119320.0,119310.0,0.05401]
[1752685846421,1.3048671,119320.0,119310.0,1.55401]
[1752685846613,1.9184671,119320.0,119310.0,1.55401]
[1752685846919,1.70679089,119320.0,119310.0,1.55401]
[1752685847110,1.09319089,119320.0,119310.0,1.55401]
[1752685847308,1.2815023,119320.0,119310.0,1.55401]
[1752685849227,1.2815023,119320.0,119310.0,1.55501]
[1752685849417,1.70647089,119320.0,119310.0,1.55501]
[1752685850722,1.2815023,119320.0,119310.0,1.55501]
[1752685851916,1.2812623,119320.0,119310.0,1.55501]
[1752685852317,1.70623089,119320.0,119310.0,1.55501]
[1752685853529,1.70611089,119320.0,119310.0,1.55501]
[1752685853825,0.6679823,119320.0,119310.0,1.55501]
[1752685854031,1.2811423,119320.0,119310.0,1.97997859]
[1752685855230,1.2811423,119320.0,119310.0,1.55501]
[1752685855434,1.70611089,119320.0,119310.0,1.55501]
[1752685857325,1.70635089,119320.0,119310.0,1.55501]
[1752685858122,1.70611089,119320.0,119310.0,1.55501]
[1752685858627,1.71114089,119320.0,119310.0,0.001]
[1752685858829,0.1675704,119300.0,119290.0,0.11265404]
[1752685859032,1.29146899,119300.0,119290.0,0.11265404]
[1752685859328,1.79146899,119300.0,119290.0,0.11265404]
[1752685859727,1.79146899,119300.0,119290.0,1.62114714]
[1752685859922,1.79146899,119300.0,119290.0,1.62414714]
[1752685860126,1.3665004,119300.0,119290.0,1.62414714]
[1752685860327,1.79146899,119300.0,119290.0,1.61565404]
[1752685860532,1.79146899,119300.0,119290.0,1.61365404]
[1752685860726,1.79146899,119300.0,119290.0,1.59032]
[1752685860925,1.79146899,119300.0,119290.0,1.501]
[1752685861130,1.79146899,119300.0,119290.0,1.56121375]
[1752685861732,1.79146899,119300.0,119290.0,1.61522375]
[1752685861930,1.79146899,119300.0,119290.0,1.55501]
[1752685862130,1.79246899,119300.0,119290.0,1.55401]
[1752685862325,1.43284315,119300.0,119290.0,1.55401]
[1752685862932,1.85781174,119300.0,119290.0,1.55401]
[1752685863136,1.85781174,119300.0,119290.0,1.55421]
[1752685864230,1.43284315,119300.0,119290.0,1.55421]
[1752685864432,1.85781174,119300.0,119290.0,1.55421]
[1752685864632,1.85785174,119300.0,119290.0,1.55421]
[1752685865733,1.85785174,119300.0,119290.0,1.5002]
[1752685865934,0.2488986,119280.0,119270.0,0.0568577]
[1752685866136,1.29105719,119280.0,119270.0,0.11707145]
[1752685866339,1.29105719,119280.0,119270.0,1.61707145]
[1752685866640,1.79105719,119280.0,119270.0,1.64953375]
[1752685867440,1.79105719,119280.0,119270.0,1.58932]
[1752685867636,1.79105719,119280.0,119270.0,1.63428883]
[1752685869340,1.79105719,119280.0,119270.0,1.59132]
[1752685869530,1.79109719,119280.0,119270.0,1.59132]
[1752685871343,1.3661286,119280.0,119270.0,1.59132]
[1752685871539,1.79109719,119280.0,119270.0,1.59132]
[1752685871849,1.3661286,119280.0,119270.0,1.59132]
[1752685872048,1.3661286,119280.0,119270.0,1.63628883]
[1752685873745,1.79109719,119280.0,119270.0,1.63628883]
[1752685873933,1.17869719,119280.0,119270.0,1.63628883]
[1752685874134,0.6676386,119280.0,119270.0,2.22887012]
[1752685874343,0.7796386,119280.0,119270.0,2.22887012]
[1752685874543,0.61204,119280.0,119270.0,2.18390129]
[1752685874743,0.61204,119280.0,119270.0,1.7589327]
[1752685874947,0.61204,119280.0,119270.0,2.18390129]
[1752685875341,0.61204,119280.0,119270.0,2.47850129]
[1752685875342,0.7796386,119280.0,119270.0,2.47850129]
[1752685877842,0.7796386,119280.0,119270.0,2.0535327]
[1752685878043,0.7796386,119280.0,119270.0,2.47850129]
[1752685878747,0.61204,119280.0,119270.0,2.47850129]
[1752685878943,0.7796382,119280.0,119270.0,2.47850129]
[1752685879349,0.7796382,119280.0,119270.0,2.0535327]
[1752685879647,0.7796382,119280.0,119270.0,2.47850129]
[1752685880050,0.7796382,119280.0,119270.0,2.53871504]
[1752685880846,0.7796382,119280.0,119270.0,2.11374645]
[1752685881043,0.7796382,119280.0,119270.0,2.53871504]
[1752685881346,4e-05,119280.0,119270.0,2.66341557]
[1752685881543,0.51836951,119290.0,119270.0,2.66341557]
[1752685881544,0.63004951,119290.0,119280.0,0.2544182]
[1752685881737,0.63004951,119290.0,119280.0,1.16456913]
[1752685882948,0.63004951,119290.0,119280.0,1.33223312]
[1752685883142,0.63004951,119290.0,119280.0,1.33343312]
[1752685884547,0.63004951,119290.0,119280.0,1.27321937]
[1752685885142,4e-05,119300.0,119290.0,0.2026042]
[1752685885348,0.7792101,119300.0,119290.0,0.73959086]
[1752685886151,0.61164,119300.0,119290.0,0.73959086]
[1752685886651,0.7792101,119300.0,119290.0,0.73959086]
[1752685887247,0.61164,119300.0,119290.0,0.73959086]
[1752685888450,4e-05,119300.0,119290.0,0.73959086]
[1752685888640,0.61152,119300.0,119290.0,0.73959086]
[1752685889850,0.7790902,119300.0,119290.0,0.31462227]
[1752685890052,0.7790902,119300.0,119290.0,1.03419086]
[1752685890550,0.7790902,119300.0,119290.0,0.60922227]
[1752685890751,0.7790902,119300.0,119290.0,1.03419086]
[1752685891252,0.7790902,119300.0,119290.0,0.97417279]
[1752685891454,0.61148,119300.0,119290.0,0.97417279]
[1752685891655,0.7790493,119300.0,119290.0,0.97417279]
[1752685892455,4e-05,119300.0,119290.0,1.04923738]
[1752685892657,0.1676097,119300.0,119290.0,1.04923738]
[1752685892955,4e-05,119300.0,119290.0,1.04923738]
[1752685893449,0.6114,119300.0,119290.0,1.21688538]
[1752685894253,4e-05,119300.0,119290.0,1.21688538]
[1752685894446,4e-05,119350.0,119310.0,0.02291]
[1752685894646,4e-05,119350.0,119340.0,0.72427742]
[1752685894952,0.58345895,119380.0,119370.0,0.2542915]
[1752685895151,1.33878635,119380.0,119370.0,0.70172776]
[1752685895346,1.33878635,119380.0,119370.0,0.67926009]
[1752685895558,1.36223635,119380.0,119370.0,0.2542914]
[1752685895753,1.36223635,119380.0,119370.0,0.29922674]
[1752685895962,1.36223635,119380.0,119370.0,0.72419533]
[1752685896161,1.36223635,119380.0,119370.0,0.70917371]
[1752685896357,1.38594635,119380.0,119370.0,0.27669536]
[1752685896562,1.38594635,119380.0,119370.0,0.70166395]
[1752685897062,1.38894635,119380.0,119370.0,0.71011699]
[1752685897460,1.39381635,119380.0,119370.0,0.2295585]
[1752685897765,1.81878494,119380.0,119370.0,0.2524685]
[1752685898360,1.81878494,119380.0,119370.0,0.29581036]
[1752685900259,0.2535615,119370.0,119350.0,0.25468066]
[1752685900460,1.28954409,119360.0,119350.0,0.21879346]
[1752685900665,1.78954409,119360.0,119350.0,0.02889]
[1752685900867,1.78954409,119360.0,119350.0,0.1963895]
[1752685901270,1.78954409,119360.0,119350.0,0.02889]
[1752685901770,1.78954409,119360.0,119350.0,0.02436]
[1752685902363,0.2015595,119350.0,119340.0,0.40745931]
[1752685902670,0.2535895,119350.0,119340.0,0.74645751]
[1752685902968,0.2535895,119350.0,119340.0,0.11210902]
[1752685903467,0.2535895,119350.0,119340.0,0.27962262]
[1752685903869,0.2535895,119350.0,119340.0,0.28062262]
[1752685904168,0.2535895,119350.0,119340.0,0.11310902]
[1752685906166,0.2535895,119350.0,119340.0,0.14302274]
[1752685906772,0.2535895,119350.0,119340.0,0.31053634]
[1752685908866,0.2535895,119350.0,119340.0,0.14302274]
[1752685910070,0.2535895,119350.0,119340.0,0.12672274]
[1752685911376,0.2535895,119350.0,119340.0,0.18784808]
[1752685912475,0.2535895,119350.0,119340.0,0.14291274]
[1752685913274,0.2535895,119350.0,119340.0,0.31042634]
[1752685913872,0.2250095,119350.0,119340.0,0.80815205]
[1752685914467,0.2250095,119350.0,119340.0,0.85308739]
[1752685915081,0.8356495,119350.0,119340.0,0.85308739]
[1752685915379,0.8356495,119350.0,119340.0,0.35536168]
[1752685916580,0.8356495,119350.0,119340.0,0.85308739]
[1752685917180,0.8356495,119350.0,119340.0,0.83619067]
[1752685917379,0.8356495,119350.0,119340.0,0.80627695]
[1752685918175,0.8356495,119350.0,119340.0,0.30855124]
[1752685918480,0.8356495,119350.0,119340.0,0.80627695]
[1752685920178,0.8356495,119350.0,119340.0,0.30855124]
[1752685920685,0.8596195,119350.0,119340.0,0.30855124]
[1752685920985,0.8643595,119350.0,119340.0,0.14103764]
[1752685921578,1.3643595,119350.0,119340.0,0.14103764]
[1752685922986,1.3643595,119350.0,119340.0,0.30855124]
[1752685923178,1.3643595,119350.0,119340.0,0.14103764]
[1752685923377,1.7890535,119350.0,119340.0,0.0961023]
[1752685923682,1.3643595,119350.0,119340.0,0.04602436]
[1752685923982,1.7890935,119350.0,119340.0,0.04104436]
[1752685924180,1.9566775,119350.0,119330.0,0.01695946]
[1752685924385,0.6327376,119340.0,119330.0,0.01695946]
[1752685924583,0.2080436,119340.0,119330.0,0.01695946]
[1752685924883,0.6327376,119340.0,119330.0,0.01695946]
[1752685925084,1.1327376,119340.0,119330.0,0.07692643]
[1752685925279,1.1327376,119340.0,119330.0,0.01695946]
[1752685925486,1.1327376,119340.0,119330.0,0.04013946]
[1752685926181,1.1327376,119340.0,119330.0,0.07016815]
[1752685926381,1.1327376,119340.0,119330.0,0.02318]
[1752685927585,1.1327776,119340.0,119330.0,0.02318]
[1752685928374,0.7080836,119340.0,119330.0,0.0861]
[1752685928781,0.7090836,119340.0,119330.0,0.0861]
[1752685929182,0.7090836,119340.0,119330.0,0.510794]
[1752685929486,0.7090836,119340.0,119330.0,0.10305542]
[1752685930781,1.1337776,119340.0,119330.0,0.10305542]
[1752685930986,1.1337776,119340.0,119330.0,0.0861]
[1752685933189,1.1337776,119340.0,119330.0,0.08707146]
[1752685933785,1.1337776,119340.0,119330.0,0.06991]
[1752685934489,0.7090836,119340.0,119330.0,0.06991]
[1752685934690,1.1337776,119340.0,119330.0,0.06991]
[1752685935192,0.7090836,119340.0,119330.0,0.06991]
[1752685935394,1.1337776,119340.0,119330.0,0.06991]
[1752685935688,0.7090836,119340.0,119330.0,0.06991]
[1752685935890,0.7090836,119340.0,119330.0,0.0861]
[1752685936591,0.7090836,119340.0,119330.0,0.10297066]
[1752685936990,0.7090836,119340.0,119330.0,0.0861]
[1752685937193,1.1337776,119340.0,119330.0,0.0861]
[1752685938190,0.7090836,119340.0,119330.0,0.0861]
[1752685938388,1.1337776,119340.0,119330.0,0.0861]
[1752685938895,1.1337776,119340.0,119330.0,0.6783215]
[1752685938896,0.54157,119340.0,119330.0,0.6783215]
[1752685939089,0.7943335,119340.0,119330.0,0.73828847]
[1752685939394,0.7945335,119340.0,119330.0,0.73848847]
[1752685939991,0.62702,119340.0,119330.0,0.73848847]
[1752685940396,0.61148,119340.0,119330.0,0.73848847]
[1752685940595,0.61148,119340.0,119330.0,0.75528691]
[1752685940996,0.61148,119340.0,119330.0,0.33059291]
[1752685941190,0.61148,119340.0,119330.0,0.69531994]
[1752685941391,0.7789935,119340.0,119330.0,0.69531994]
[1752685941595,0.7789935,119340.0,119330.0,0.77038453]
[1752685941995,0.7789935,119340.0,119330.0,0.27062594]
[1752685942297,0.7789935,119340.0,119330.0,0.69531994]
[1752685942995,0.00124,119340.0,119330.0,0.69531994]
[1752685943298,0.6114,119340.0,119330.0,0.69531994]
[1752685943799,0.7789135,119340.0,119330.0,0.77038453]
[1752685943986,0.7789135,119340.0,119330.0,0.34569053]
[1752685944191,0.6114,119340.0,119330.0,0.77038453]
[1752685945895,0.8188935,119340.0,119330.0,0.77038453]
[1752685946094,1.2435875,119340.0,119330.0,0.17816303]
[1752685946295,1.2425875,119340.0,119330.0,0.18016303]
[1752685946697,0.8178935,119340.0,119330.0,0.18016303]
[1752685946896,0.8178935,119340.0,119330.0,0.34769003]
[1752685947096,0.8178935,119340.0,119330.0,0.69731944]
[1752685947295,0.8178935,119340.0,119330.0,0.27262544]
[1752685947496,0.8178935,119340.0,119330.0,0.69731944]
[1752685948400,0.8178935,119340.0,119330.0,0.77238403]
[1752685949000,0.817893,119340.0,119330.0,0.77238403]
[1752685949198,0.62632,119340.0,119330.0,0.77238403]
[1752685949392,0.793833,119340.0,119330.0,0.77238403]
[1752685949589,0.61028,119340.0,119330.0,0.77238403]
[1752685949796,0.793833,119340.0,119330.0,0.77238403]
[1752685950400,0.62632,119340.0,119330.0,0.77238403]
[1752685951001,0.793833,119340.0,119330.0,0.77238403]
[1752685951202,0.62632,119340.0,119330.0,0.77238403]
[1752685951402,0.793833,119340.0,119330.0,0.77238403]
[1752685953400,0.01628,119340.0,119330.0,0.77238403]
[1752685953602,0.00024,119340.0,119330.0,0.77238403]
[1752685953796,0.167753,119340.0,119330.0,0.77238403]
[1752685954904,0.00024,119340.0,119330.0,0.77238403]
[1752685957107,0.167753,119340.0,119330.0,0.77238403]
[1752685957296,0.167753,119340.0,119330.0,0.34769003]
[1752685957500,0.167753,119340.0,119330.0,0.77238403]
[1752685957906,0.00024,119340.0,119330.0,0.77238403]
[1752685958107,0.00024,119340.0,119330.0,1.06698403]
[1752685962118,0.167753,119340.0,119330.0,1.06698403]
[1752685962313,0.167753,119340.0,119330.0,0.64229003]
[1752685962518,0.707733,119340.0,119330.0,0.47476303]
[1752685962720,0.207733,119340.0,119330.0,0.41642303]
[1752685962915,1.132427,119340.0,119330.0,0.34135844]
[1752685963115,1.132427,119340.0,119330.0,0.40146266]
[1752685963922,0.707733,119340.0,119330.0,0.40146266]
[1752685964116,1.132427,119340.0,119330.0,0.10686266]
[1752685964722,1.133427,119340.0,119330.0,0.10486266]
[1752685965612,1.133427,119340.0,119330.0,0.27238966]
[1752685965814,1.133427,119340.0,119330.0,0.29593966]
[1752685966222,0.708733,119340.0,119330.0,0.29593966]
[1752685967222,1.133427,119340.0,119330.0,0.29593966]
[1752685967517,1.133427,119340.0,119330.0,0.11161422]
[1752685968221,1.133427,119340.0,119330.0,0.08806422]
[1752685968425,1.133427,119340.0,119330.0,0.02796]
[1752685968719,1.133427,119340.0,119330.0,0.0002]
[1752685968920,0.183887,119330.0,119320.0,0.07506459]
[1752685969219,0.183887,119330.0,119320.0,0.06017741]
[1752685969220,1.3674144,119330.0,119320.0,0.06017741]
[1752685969617,1.8674144,119330.0,119320.0,0.06017741]
[1752685969817,0.1839011,119320.0,119310.0,0.11175741]
[1752685970018,0.6319351,119320.0,119310.0,0.11175741]
[1752685970422,1.1319351,119320.0,119310.0,0.11175741]
[1752685971825,1.1319351,119320.0,119310.0,0.11375741]
[1752685972225,1.1319351,119320.0,119310.0,0.09020741]
[1752685972723,1.3170411,119320.0,119310.0,0.73977651]
[1752685972926,1.3170411,119320.0,119310.0,0.57222141]
[1752685973525,1.3170811,119320.0,119310.0,0.57222141]
[1752685973925,1.3170811,119320.0,119310.0,0.512044]
[1752685976021,1.3170811,119320.0,119310.0,0.6795991]
[1752685976324,1.3170411,119320.0,119310.0,0.73977651]
[1752685976526,1.3170411,119320.0,119310.0,0.6795991]
[1752685976726,1.3170411,119320.0,119310.0,0.512044]
[1752685977116,1.3170411,119320.0,119310.0,0.08735]
[1752685977316,1.3170411,119320.0,119310.0,0.03003]
[1752685977317,1.7417351,119320.0,119310.0,0.03003]
[1752685977514,1.7417351,119320.0,119310.0,0.04704583]
[1752685977720,1.3170411,119320.0,119310.0,0.04704583]
[1752685977917,2.18525989,119320.0,119310.0,0.04704583]
[1752685978116,0.1675551,119310.0,119300.0,0.06017741]
[1752685978323,0.1675551,119310.0,119290.0,0.08336741]
[1752685978324,0.1767992,119300.0,119290.0,0.08336741]
[1752685978522,1.7169832,119300.0,119290.0,0.08336741]
[1752685978822,1.2169832,119300.0,119290.0,0.08336741]
[1752685979030,1.7169832,119300.0,119290.0,0.06017741]
[1752685979323,0.6825692,119300.0,119290.0,0.10933741]
[1752685979521,1.2922492,119300.0,119290.0,0.12946741]
[1752685979723,1.2922492,119300.0,119290.0,0.08535]
[1752685980226,1.2922492,119300.0,119290.0,0.510044]
[1752685980227,0.6767992,119300.0,119290.0,0.510044]
[1752685980432,1.2864792,119300.0,119290.0,0.6776272]
[1752685981127,1.2864792,119300.0,119290.0,0.6786272]
[1752685982130,1.2864792,119300.0,119290.0,0.70865078]
[1752685982426,1.2864792,119300.0,119290.0,0.54106758]
[1752685982727,1.2864792,119300.0,119290.0,0.70865078]
[1752685982940,0.6767992,119300.0,119290.0,0.61439541]
[1752685983229,1.2864392,119300.0,119290.0,0.11637358]
[1752685983827,1.2864392,119300.0,119290.0,0.28395678]
[1752685984030,0.6675692,119300.0,119290.0,0.78197861]
[1752685984231,0.7772092,119300.0,119290.0,0.75195503]
[1752685984725,0.7772092,119300.0,119290.0,0.81213244]
[1752685985235,0.7772092,119300.0,119290.0,0.31411061]
[1752685985426,0.79555191,119300.0,119290.0,0.31411061]
[1752685985730,0.79555191,119300.0,119290.0,0.81233244]
[1752685986626,0.18591191,119300.0,119290.0,0.81233244]
[1752685986825,0.62794271,119300.0,119290.0,0.81233244]
[1752685987227,0.62794271,119300.0,119290.0,0.75215503]
[1752685987730,0.18591191,119300.0,119290.0,1.12181962]
[1752685988630,0.01834271,119300.0,119290.0,1.12181962]
[1752685989332,0.18591181,119300.0,119290.0,1.12181962]
[1752685989732,0.19514181,119300.0,119290.0,1.04675503]
[1752685990427,0.19514181,119300.0,119290.0,1.12181962]
[1752685991531,1.19893364,119300.0,119290.0,0.4541313]
[1752685991736,0.69893364,119300.0,119290.0,0.2958]
[1752685991938,1.19893364,119300.0,119290.0,0.2958]
[1752685993335,1.19893364,119300.0,119290.0,0.31899]
[1752685993535,1.19893364,119300.0,119290.0,0.2958]
[1752685993732,1.19893364,119300.0,119290.0,0.0012]
[1752685994037,1.19893364,119300.0,119280.0,0.06007671]
[1752685994038,0.1794632,119290.0,119280.0,0.06007671]
[1752685994230,0.1794632,119290.0,119280.0,0.03006147]
[1752685994231,1.41253853,119290.0,119280.0,0.03006147]
[1752685994429,0.1749072,119280.0,119270.0,1.84655272]
[1752685994631,0.1794772,119280.0,119270.0,1.84655272]
[1752685995232,0.1794772,119280.0,119270.0,1.78647601]
[1752685995432,0.1794772,119280.0,119270.0,1.84655272]
[1752685995632,0.1794772,119280.0,119270.0,1.85514711]
[1752685995834,0.7842272,119280.0,119270.0,2.35316894]
[1752685996043,0.7842272,119280.0,119270.0,1.7950704]
[1752685996335,0.7842272,119280.0,119270.0,2.29409223]
[1752685997440,0.7842272,119280.0,119270.0,2.35416894]
[1752685999442,0.7769172,119280.0,119270.0,2.35416894]
[1752685999736,0.6675923,119290.0,119280.0,0.2020772]
[1752685999737,0.7094822,119290.0,119280.0,0.2020772]
[1752685999941,0.8261122,119290.0,119280.0,0.75227903]
[1752686001448,0.8271122,119290.0,119280.0,0.27153451]
[1752686001840,0.8271122,119290.0,119280.0,0.82963305]
[1752686004148,0.8271122,119290.0,119280.0,0.33161122]
[1752686004445,0.8271122,119290.0,119280.0,0.82963305]
[1752686004648,0.7779063,119290.0,119280.0,0.82963305]
[1752686004845,0.1685863,119290.0,119280.0,0.82963305]
[1752686005045,0.7777463,119290.0,119280.0,0.82963305]
[1752686006152,0.61016,119290.0,119280.0,0.76955634]
[1752686006353,0.7777432,119290.0,119280.0,0.76955634]
[1752686007547,0.7777432,119290.0,119280.0,0.84462093]
[1752686007749,0.7777832,119290.0,119280.0,0.84462093]
[1752686009953,0.7777832,119290.0,119280.0,0.3465991]
[1752686010155,0.7777832,119290.0,119280.0,0.84462093]
[1752686010548,0.6102,119290.0,119280.0,0.84462093]
[1752686010755,0.6102,119290.0,119280.0,0.84482093]
[1752686011255,0.61016,119290.0,119280.0,0.84482093]
[1752686011656,0.61016,119290.0,119280.0,0.76975634]
[1752686012053,0.7777432,119290.0,119280.0,0.27173451]
[1752686012256,0.7777432,119290.0,119280.0,0.76975634]
[1752686015054,0.7777432,119290.0,119280.0,0.6966858]
[1752686015256,0.7777432,119290.0,119280.0,0.77175039]
[1752686015456,0.61004,119290.0,119280.0,0.77175039]
[1752686015656,0.61004,119290.0,119280.0,1.19670168]
[1752686015864,0.61004,119290.0,119280.0,1.12163709]
[1752686016056,0.7776232,119290.0,119280.0,1.12163709]
[1752686016253,0.7776232,119290.0,119280.0,0.6966858]
[1752686016760,0.7776232,119290.0,119280.0,0.27173451]
[1752686016960,0.7776232,119290.0,119280.0,0.6966858]
[1752686017165,0.7849332,119290.0,119280.0,0.6966858]
[1752686017354,0.7849332,119290.0,119280.0,0.9912858]
[1752686019760,0.7849332,119290.0,119280.0,1.06635039]
[1752686021556,0.61735,119290.0,119280.0,1.06635039]
[1752686021750,0.7776232,119290.0,119280.0,0.6413991]